bitfinex/quotes_SOLUSD_20250908
["timestamp","ask_amount","ask_price","bid_price","bid_amount"]
[1757342176584,0.06,215.63,215.62,38.28]
[1757342178329,4.6354239,215.73,215.62,43.5877887]
[1757342178607,0.68,215.74,215.65,26.0]
[1757342178818,7.0464118,215.69,215.68,26.0]
[1757342179016,16.22398367,215.73,215.66,64.8]
[1757342179308,4.6354239,215.73,215.69,26.0]
[1757342179482,0.68,215.72,215.7,38.94]
[1757342179688,7.0464118,215.71,215.66,26.0]
[1757342179880,16.22398367,215.73,215.67,38.94]
[1757342180095,7.0464118,215.68,215.67,38.94]
[1757342180303,7.7264118,215.68,215.6,26.0]
[1757342180502,4.63671349,215.67,215.61,65.1]
[1757342180708,4.63647825,215.69,215.61,65.77]
[1757342181093,7.0464118,215.67,215.61,65.77]
[1757342181306,0.68,215.68,215.61,65.1]
[1757342181612,16.22718713,215.69,215.61,65.1]
[1757342181787,7.0464118,215.65,215.61,65.1]
[1757342181983,7.0464118,215.64,215.61,65.1]
[1757342182385,4.63728037,215.65,215.62,0.16759336]
[1757342182601,7.0464118,215.63,215.62,0.16759336]
[1757342182997,16.23013916,215.65,215.62,0.16759336]
[1757342183395,0.68,215.65,215.62,0.16759336]
[1757342183603,0.68,215.68,215.62,0.16759336]
[1757342183808,7.0464118,215.64,215.61,39.1]
[1757342183986,0.68,215.68,215.61,39.1]
[1757342184500,11.68377036,215.64,215.61,39.1]
[1757342184705,7.0464118,215.63,215.61,39.1]
[1757342184909,4.63735856,215.64,215.61,39.1]
[1757342184910,11.68377036,215.64,215.61,39.1]
[1757342185099,7.0464118,215.64,215.61,39.1]
[1757342185304,7.0464118,215.66,215.61,39.1]
[1757342185500,7.0464118,215.64,215.61,39.1]
[1757342185703,7.0464118,215.62,215.61,39.1]
[1757342186005,7.0464118,215.62,215.47,0.03]
[1757342186006,13.59559401,215.61,215.47,0.03]
[1757342186197,13.59559401,215.61,215.5,39.26]
[1757342186398,13.59559401,215.59,215.5,39.26]
[1757342186608,13.59559401,215.57,215.5,39.26]
[1757342186910,13.59559401,215.55,215.5,39.26]
[1757342187096,0.68,215.54,215.5,39.26]
[1757342187295,0.68,215.53,215.5,39.26]
[1757342187615,7.0464118,215.51,215.5,39.26]
[1757342187816,21.32200581,215.51,215.5,39.26]
[1757342188003,13.59559401,215.54,215.5,39.26]
[1757342188207,7.0464118,215.51,215.5,39.26]
[1757342188598,4.6401559,215.51,215.5,39.26]
[1757342188829,23.18853881,215.63,215.5,39.26]
[1757342189117,7.0464118,215.56,215.5,39.93]
[1757342189301,13.59559401,215.59,215.5,39.26]
[1757342189502,7.0464118,215.55,215.5,39.26]
[1757342190213,0.68,215.61,215.51,0.67]
[1757342190516,7.0464118,215.57,215.51,0.67]
[1757342190709,11.68545245,215.57,215.51,0.67]
[1757342190904,4.63851723,215.59,215.51,0.67]
[1757342191105,4.63801691,215.61,215.53,26.0]
[1757342191512,0.74,215.64,215.54,0.67]
[1757342191813,0.74,215.64,215.53,26.0]
[1757342191814,7.0464118,215.56,215.55,39.26]
[1757342191999,0.68,215.56,215.55,39.76]
[1757342192204,7.7264118,215.56,215.55,39.76]
[1757342192600,21.32200581,215.56,215.55,39.76]
[1757342193021,25.96108541,215.56,215.55,39.26]
[1757342193218,18.91467361,215.56,215.55,39.26]
[1757342193399,25.96108541,215.56,215.55,39.26]
[1757342193599,13.59559401,215.55,215.47,0.03]
[1757342193908,7.0464118,215.48,215.47,0.03]
[1757342194311,13.59559401,215.51,215.47,0.03]
[1757342194514,7.0464118,215.48,215.47,0.03]
[1757342194809,13.59559401,215.51,215.47,0.03]
[1757342194810,7.0464118,215.49,215.47,39.43]
[1757342195012,11.68721373,215.48,215.47,39.43]
[1757342195215,7.0464118,215.48,215.47,39.43]
[1757342196411,14.26559401,215.52,215.47,39.43]
[1757342196729,7.0464118,215.48,215.47,39.43]
[1757342196903,0.67,215.51,215.47,39.43]
[1757342197103,0.67,215.5,215.47,39.43]
[1757342197300,7.0464118,215.48,215.47,39.43]
[1757342198111,7.7164118,215.48,215.47,39.43]
[1757342198517,21.31200581,215.48,215.47,39.43]
[1757342199104,25.95280774,215.48,215.47,39.43]
[1757342199606,13.59559401,215.47,215.36,0.66]
[1757342199814,7.0464118,215.4,215.36,0.66]
[1757342200013,7.0464118,215.39,215.36,0.66]
[1757342200217,7.0464118,215.38,215.34,33.38]
[1757342200424,7.0464118,215.35,215.34,33.38]
[1757342200721,7.0464118,215.35,215.33,0.2]
[1757342200722,7.7164118,215.35,215.33,0.2]
[1757342200914,7.7164118,215.34,215.33,0.2]
[1757342201115,12.36023087,215.34,215.33,0.2]
[1757342201823,5.31295663,215.38,215.33,0.2]
[1757342202113,7.0464118,215.34,215.33,0.2]
[1757342202433,4.64295663,215.38,215.33,0.2]
[1757342202615,7.0464118,215.35,215.33,0.2]
[1757342202812,4.64269675,215.4,215.33,0.86]
[1757342203027,7.0464118,215.38,215.35,0.5]
[1757342203251,11.68923085,215.39,215.35,0.5]
[1757342203539,7.0464118,215.39,215.35,1.16]
[1757342203858,7.0464118,215.4,215.35,0.5]
[1757342204710,7.0464118,215.39,215.35,0.5]
[1757342204912,7.0464118,215.36,215.35,0.5]
[1757342205223,16.24825154,215.41,215.35,34.44]
[1757342205224,4.64317221,215.37,215.35,34.44]
[1757342205532,7.0464118,215.36,215.35,34.44]
[1757342205724,11.68958401,215.37,215.35,34.44]
[1757342206038,4.64182661,215.44,215.36,0.66]
[1757342206537,7.0464118,215.42,215.36,0.66]
[1757342206920,7.0464118,215.42,215.38,26.0]
[1757342207612,11.68851195,215.42,215.38,26.0]
[1757342207819,7.0464118,215.43,215.39,0.66]
[1757342208016,7.0464118,215.44,215.38,26.0]
[1757342208327,4.64162322,215.45,215.38,30.6428801]
[1757342208645,0.67,215.52,215.39,0.66]
[1757342208813,7.0464118,215.52,215.39,0.66]
[1757342209215,11.68676968,215.51,215.42,26.0]
[1757342209446,4.64035788,215.51,215.43,65.82]
[1757342209618,12.35614988,215.53,215.43,65.82]
[1757342209821,5.30973808,215.53,215.43,65.82]
[1757342210042,7.0464118,215.52,215.43,65.82]
[1757342210337,7.0464118,215.51,215.43,65.82]
[1757342210542,7.0464118,215.52,215.43,65.82]
[1757342210914,7.0464118,215.5,215.43,26.0]
[1757342211119,16.24054567,215.51,215.43,26.0]
[1757342211332,16.24054567,215.51,215.44,39.1]
[1757342211333,7.0464118,215.49,215.44,39.1]
[1757342211537,7.0464118,215.47,215.45,39.1]
[1757342211750,0.67,215.47,215.46,39.08]
[1757342211927,7.7164118,215.47,215.46,39.08]
[1757342212131,0.67,215.47,215.46,39.08]
[1757342212331,7.7164118,215.47,215.46,39.08]
[1757342212926,7.0464118,215.47,215.46,39.08]
[1757342213823,11.68742911,215.47,215.46,39.08]
[1757342214023,12.35742911,215.47,215.46,39.08]
[1757342214431,11.68742911,215.47,215.46,39.08]
[1757342215033,7.0464118,215.47,215.46,39.08]
[1757342215236,7.7164118,215.47,215.46,39.08]
[1757342215434,0.67,215.53,215.46,39.08]
[1757342215749,7.0464118,215.52,215.46,39.08]
[1757342216832,0.67,215.51,215.47,38.94]
[1757342217041,7.0464118,215.49,215.48,38.92]
[1757342217234,7.7164118,215.49,215.48,38.92]
[1757342217426,7.0464118,215.49,215.48,38.92]
[1757342217627,7.7164118,215.49,215.4,26.0]
[1757342217843,7.0464118,215.47,215.4,26.0]
[1757342218041,11.68761462,215.47,215.44,26.0]
[1757342218439,4.64120282,215.47,215.44,26.0]
[1757342219929,4.64120282,215.47,215.4,26.0]
[1757342219930,7.0464118,215.47,215.4,26.0]
[1757342220137,4.64080193,215.48,215.44,26.0]
[1757342220455,4.64080193,215.48,215.41,38.86]
[1757342220456,7.0464118,215.45,215.4,26.0]
[1757342220652,7.0464118,215.45,215.37,38.04305762]
[1757342220653,7.0464118,215.42,215.37,33.4]
[1757342220835,7.0464118,215.42,215.38,38.86]
[1757342221539,7.0464118,215.39,215.37,33.4]
[1757342221732,7.0464118,215.39,215.38,38.86]
[1757342221929,4.64274107,215.39,215.38,38.86]
[1757342222461,11.68876413,215.41,215.38,38.86]
[1757342222631,7.0464118,215.42,215.38,38.86]
[1757342222955,4.64206944,215.43,215.38,38.86]
[1757342223132,7.0464118,215.42,215.38,38.86]
[1757342223334,7.0464118,215.41,215.38,38.86]
[1757342223639,72.9,215.46,215.39,0.66]
[1757342223839,7.0464118,215.44,215.39,0.66]
[1757342224042,4.64121876,215.47,215.41,26.0]
[1757342224249,4.64121876,215.47,215.42,38.8]
[1757342224752,7.0464118,215.46,215.42,38.8]
[1757342224943,7.0464118,215.45,215.43,38.8]
[1757342225137,23.19996469,215.52,215.43,38.8]
[1757342225138,7.0464118,215.48,215.43,38.8]
[1757342225450,4.64079179,215.49,215.43,39.46]
[1757342225646,7.0464118,215.48,215.43,39.46]
[1757342225854,4.64123271,215.46,215.43,38.8]
[1757342226030,11.68764451,215.46,215.43,38.8]
[1757342226365,7.0464118,215.45,215.43,38.8]
[1757342226958,7.7464118,215.44,215.43,38.8]
[1757342227133,7.7464118,215.44,215.4,0.5]
[1757342227460,0.7,215.43,215.41,38.72]
[1757342227674,0.7,215.42,215.35,0.03]
[1757342227839,13.59559401,215.4,215.35,0.03]
[1757342228157,13.59559401,215.38,215.35,0.03]
[1757342228528,20.64200581,215.36,215.35,0.03]
[1757342228956,21.34200581,215.36,215.35,0.03]
[1757342229664,24.79106881,215.36,215.35,0.03]
[1757342229862,25.98539362,215.36,215.35,0.03]
[1757342230028,4.64338781,215.36,215.35,0.03]
[1757342230246,11.68979961,215.36,215.35,0.03]
[1757342230543,11.68952844,215.38,215.35,0.03]
[1757342230950,7.0464118,215.37,215.35,0.03]
[1757342231863,11.6065026,215.4,215.35,0.03]
[1757342232071,7.0464118,215.37,215.35,0.03]
[1757342232366,12.3065026,215.4,215.35,0.03]
[1757342232567,7.0464118,215.37,215.35,0.03]
[1757342232945,7.0464118,215.36,215.35,0.03]
[1757342233141,7.0464118,215.36,215.35,38.65]
[1757342233742,7.0464118,215.36,215.35,0.03]
[1757342233948,12.38979961,215.36,215.35,38.61]
[1757342234251,25.98539362,215.36,215.35,38.61]
[1757342234450,29.43505945,215.36,215.35,38.61]
[1757342234651,13.59559401,215.35,215.33,0.2]
[1757342234850,20.64200581,215.34,215.33,0.2]
[1757342235065,21.34200581,215.34,215.33,0.2]
[1757342235966,21.34200581,215.34,215.33,38.76]
[1757342236467,25.98582488,215.34,215.33,38.76]
[1757342237150,18.93941308,215.34,215.33,38.76]
[1757342237351,25.98582488,215.34,215.33,38.76]
[1757342238377,29.48725265,215.34,215.33,38.76]
[1757342240467,18.23941308,215.34,215.33,38.76]
[1757342240671,29.48725265,215.34,215.33,38.76]
[1757342240856,18.93941308,215.34,215.33,38.76]
[1757342241055,28.78725265,215.34,215.33,38.76]
[1757342241572,29.48725265,215.34,215.33,38.76]
[1757342242560,29.48725265,215.34,215.32,0.08782419]
[1757342242561,13.59559401,215.33,215.32,0.08782419]
[1757342242761,24.84343358,215.33,215.32,0.08782419]
[1757342243759,24.84343358,215.33,215.32,38.60782419]
[1757342244358,14.29559401,215.33,215.32,38.60782419]
[1757342244573,29.48746831,215.33,215.32,38.60782419]
[1757342244764,15.1918743,215.33,215.32,38.60782419]
[1757342246164,29.48746831,215.33,215.32,38.60782419]
[1757342247458,29.48746831,215.33,215.3,0.03]
[1757342247459,13.59559401,215.32,215.3,0.03]
[1757342247666,10.54783957,215.31,215.3,0.03]
[1757342247861,11.24783957,215.31,215.3,0.03]
[1757342248274,10.54783957,215.31,215.3,0.03]
[1757342248670,10.54783957,215.31,215.3,19.47]
[1757342248671,15.19230568,215.31,215.3,19.47]
[1757342249277,15.89230568,215.31,215.3,19.47]
[1757342249676,29.48789969,215.31,215.3,38.43]
[1757342250274,29.48789969,215.31,215.29,0.1]
[1757342250275,13.59559401,215.3,215.29,0.1]
[1757342250477,24.84343358,215.3,215.29,1e-08]
[1757342250678,29.48811541,215.3,215.29,1e-08]
[1757342251282,11.61008684,215.33,215.29,1e-08]
[1757342251478,10.54783957,215.3,215.29,1e-08]
[1757342251678,10.54783957,215.3,215.29,38.34000001]
[1757342252862,15.1925214,215.3,215.29,38.34000001]
[1757342254872,15.1925214,215.3,215.29,1e-08]
[1757342255181,15.1925214,215.3,215.29,38.28000001]
[1757342255694,15.8425214,215.3,215.29,38.28000001]
[1757342256572,15.1925214,215.3,215.29,38.28000001]
[1757342257487,4.64468183,215.3,215.29,38.28000001]
[1757342257686,15.1925214,215.3,215.29,38.28000001]
[1757342258469,29.43811541,215.3,215.29,1e-08]
[1757342258683,13.59559401,215.29,215.25,0.2]
[1757342258874,13.59559401,215.26,215.25,0.2]
[1757342259081,24.14343358,215.26,215.25,1e-08]
[1757342259280,24.79343358,215.26,215.25,1e-08]
[1757342259486,29.4389785,215.26,215.25,1e-08]
[1757342259683,13.59559401,215.25,215.16,0.2]
[1757342259880,13.59559401,215.23,215.21,38.16]
[1757342260081,0.65,215.22,215.16,0.2]
[1757342260686,0.65,215.25,215.16,0.88]
[1757342260881,0.65,215.24,215.16,0.2]
[1757342261287,10.54783957,215.18,215.17,38.14]
[1757342261480,15.19511162,215.18,215.17,38.14]
[1757342262386,0.65,215.24,215.17,38.14]
[1757342262586,10.54783957,215.18,215.17,38.14]
[1757342263199,10.54783957,215.18,215.16,0.2]
[1757342263379,13.59559401,215.18,215.17,38.1]
[1757342263584,28.79070563,215.18,215.17,38.1]
[1757342263914,15.19511162,215.18,215.17,38.1]
[1757342264878,15.19511162,215.18,215.16,0.2]
[1757342265081,24.79343358,215.17,215.16,0.2]
[1757342265283,24.79343358,215.17,215.13,0.03]
[1757342265631,28.79156967,215.14,215.13,0.03]
[1757342266210,15.19597566,215.14,215.13,38.11]
[1757342267390,29.44156967,215.14,215.13,0.03]
[1757342268787,28.79156967,215.14,215.13,0.03]
[1757342269289,29.44156967,215.14,215.13,0.03]
[1757342270599,29.44156967,215.14,215.05,34.1]
[1757342270600,64.30259039,215.14,215.05,33.42]
[1757342270792,10.54783957,215.1,215.06,0.68]
[1757342270994,10.54783957,215.09,215.07,0.71]
[1757342271198,10.54783957,215.1,215.07,0.71]
[1757342271425,10.54783957,215.1,215.07,0.03]
[1757342271589,15.19705617,215.09,215.07,0.03]
[1757342271792,4.6492166,215.09,215.07,0.03]
[1757342272009,10.54783957,215.08,215.07,0.03]
[1757342272309,10.54783957,215.08,215.07,38.09]
[1757342273406,24.14343358,215.08,215.07,38.09]
[1757342273790,15.19727233,215.08,215.07,38.09]
[1757342274695,4.64922791,215.09,215.07,38.77]
[1757342275006,4.64922791,215.09,215.08,0.68]
[1757342275199,4.64922791,215.09,215.07,38.09]
[1757342275706,10.54783957,215.11,215.07,38.77]
[1757342276208,16.27001173,215.12,215.08,0.68]
[1757342276412,16.27001173,215.12,215.09,0.68]
[1757342276892,26.8178513,215.12,215.07,38.77]
[1757342277097,10.54783957,215.11,215.07,38.77]
[1757342277292,10.54783957,215.11,215.07,38.09]
[1757342277491,16.27001173,215.12,215.08,0.68]
[1757342277699,26.8178513,215.12,215.08,38.72]
[1757342277983,4.64859113,215.12,215.09,1.18]
[1757342278504,4.64859113,215.12,215.09,0.68]
[1757342278922,4.64859113,215.12,215.08,38.04]
[1757342279111,10.54783957,215.17,215.09,0.68]
[1757342279296,10.54783957,215.18,215.09,0.68]
[1757342279507,10.54783957,215.17,215.09,0.68]
[1757342279812,4.64792005,215.15,215.09,0.68]
[1757342280199,16.26772018,215.15,215.09,0.68]
[1757342280392,4.64769007,215.17,215.11,26.0]
[1757342280697,4.64769007,215.17,215.12,38.64]
[1757342281005,4.64769007,215.17,215.13,0.68]
[1757342281209,4.64769007,215.17,215.14,0.68]
[1757342281517,15.19552964,215.17,215.16,26.0]
[1757342281693,15.19552964,215.17,215.13,37.96]
[1757342281694,16.26641015,215.17,215.13,37.96]
[1757342281888,10.54783957,215.15,215.09,0.68]
[1757342282197,0.65,215.16,215.09,0.68]
[1757342282198,10.54783957,215.14,215.1,37.94]
[1757342282800,11.61872008,215.17,215.11,0.68]
[1757342283092,10.54783957,215.16,215.12,38.42]
[1757342283405,11.19783957,215.16,215.12,38.42]
[1757342283604,24.14343358,215.13,215.08,24.18]
[1757342283804,10.54783957,215.11,215.08,24.18]
[1757342284002,4.64900046,215.1,215.08,24.18]
[1757342284202,10.54783957,215.14,215.08,24.18]
[1757342284403,10.54783957,215.13,215.08,24.18]
[1757342284604,11.19783957,215.12,215.08,24.18]
[1757342284797,10.54783957,215.11,215.09,37.88]
[1757342284996,10.54783957,215.14,215.09,37.88]
[1757342285296,11.19783957,215.14,215.09,37.88]
[1757342285494,10.54783957,215.13,215.09,37.88]
[1757342286104,4.64835215,215.13,215.09,37.88]
[1757342286306,26.81707211,215.13,215.09,37.88]
[1757342286514,27.47707211,215.13,215.09,37.88]
[1757342287118,16.92923254,215.13,215.09,37.88]
[1757342287314,13.59559401,215.15,215.09,37.88]
[1757342287524,0.66,215.16,215.09,37.88]
[1757342287705,72.8,215.15,215.09,37.88]
[1757342287905,83.34783957,215.15,215.09,37.88]
[1757342288096,72.8,215.15,215.09,37.88]
[1757342288614,0.06,215.19,215.12,26.0]
[1757342288823,0.06,215.19,215.16,26.0]
[1757342289008,0.06,215.19,215.17,37.8]
[1757342289602,4.70713015,215.19,215.18,37.8]
[1757342289825,0.06,215.19,215.18,37.78]
[1757342290010,4.70705608,215.19,215.18,37.78]
[1757342290634,0.06,215.19,215.18,37.78]
[1757342290826,0.06,215.19,215.18,42.42727205]
[1757342291140,0.06,215.19,215.18,46.22713358]
[1757342291834,0.06,215.19,215.18,37.76]
[1757342292214,0.06,215.19,215.18,41.45480654]
[1757342292730,0.06,215.19,215.18,37.72]
[1757342293321,0.06,215.19,215.18,41.38357175]
[1757342293836,0.06,215.19,215.18,46.0308438]
[1757342294130,0.06,215.19,215.18,37.72]
[1757342294323,0.06,215.19,215.18,37.68]
[1757342296542,0.72,215.19,215.18,37.66]
[1757342297137,0.06,215.19,215.18,37.66]
[1757342298136,0.06,215.19,215.17,30.64739217]
[1757342298347,0.06,215.19,215.18,37.64]
[1757342299731,0.06,215.19,215.18,63.62]
[1757342300124,0.06,215.19,215.18,68.26727205]
[1757342300424,0.06,215.19,215.18,37.62]
[1757342300827,0.06,215.19,215.17,26.0]
[1757342301026,0.72,215.19,215.18,37.6]
[1757342301222,0.06,215.19,215.13,8.33028813]
[1757342301441,0.72,215.19,215.14,37.62]
[1757342301829,0.66,215.18,215.1,4.67882433]
[1757342302031,0.66,215.18,215.11,37.6]
[1757342302263,4.64746761,215.18,215.14,26.0]
[1757342302549,4.70705668,215.19,215.15,37.6]
[1757342302747,5.36705668,215.19,215.15,37.6]
[1757342303130,0.66,215.18,215.17,26.0]
[1757342303337,7.72957497,215.18,215.1,0.03]
[1757342303539,0.66,215.18,215.11,37.72]
[1757342303728,0.66,215.18,215.14,26.0]
[1757342303934,7.72957497,215.18,215.15,37.72]
[1757342304260,4.64770403,215.16,215.15,37.72]
[1757342304559,4.7070587,215.19,215.15,37.72]
[1757342304720,0.66,215.18,215.15,37.72]
[1757342305732,4.7070587,215.19,215.15,37.72]
[1757342305733,0.06,215.19,215.15,37.72]
[1757342306551,0.06,215.19,215.18,26.0]
[1757342306730,0.06,215.19,215.18,63.66]
[1757342309725,0.06,215.19,215.18,68.30727205]
[1757342311931,0.06,215.19,215.18,68.77199925]
[1757342312141,0.06,215.19,215.18,63.66]
[1757342312455,0.06,215.19,215.18,26.0]
[1757342312644,0.06,215.19,215.18,37.56]
[1757342314158,0.06,215.19,215.18,42.20727205]
[1757342315454,0.06,215.19,215.18,55.80286606]
[1757342316043,0.06,215.19,215.18,55.74286606]
[1757342319133,0.06,215.19,215.18,60.42317376]
[1757342319656,0.06,215.19,215.18,42.10727205]
[1757342319859,0.06,215.19,215.18,4.64727205]
[1757342320039,0.06,215.19,215.18,42.08727205]
[1757342320543,0.06,215.19,215.18,42.58727205]
[1757342321637,0.06,215.19,215.18,56.18286606]
[1757342322048,0.01212597,215.19,215.18,56.18286606]
[1757342322259,0.06,215.22,215.21,26.0]
[1757342322465,0.06,215.22,215.21,63.38]
[1757342322640,0.06,215.22,215.21,63.84466242]
[1757342323652,0.06,215.22,215.21,26.46466242]
[1757342323975,0.06,215.22,215.21,68.02662422]
[1757342325062,0.06,215.22,215.21,63.38]
[1757342325364,0.76,215.22,215.21,37.38]
[1757342326464,0.06,215.22,215.21,42.02662422]
[1757342326854,0.06,215.22,215.21,37.38]
[1757342327059,0.76,215.22,215.21,42.02662422]
[1757342327265,0.76,215.22,215.21,37.38]
[1757342328050,0.76,215.22,215.21,42.02662422]
[1757342328774,0.76,215.22,215.21,37.38]
[1757342328948,0.76,215.22,215.21,42.02662422]
[1757342329268,0.76,215.22,215.21,30.64662422]
[1757342329451,0.76,215.22,215.21,68.00662422]
[1757342330069,0.76,215.22,215.21,30.64662422]
[1757342330372,0.76,215.22,215.21,68.00662422]
[1757342330749,0.76,215.22,215.21,63.36]
[1757342330960,0.76,215.22,215.21,68.00662422]
[1757342331973,0.76,215.22,215.21,63.36]
[1757342332175,8.27729198,215.22,215.21,62.64]
[1757342332378,0.76,215.22,215.21,37.36]
[1757342332686,8.27729198,215.22,215.21,37.36]
[1757342333560,5.40640832,215.22,215.21,37.36]
[1757342334162,19.00200233,215.22,215.21,37.36]
[1757342334357,25.34271171,215.22,215.21,37.36]
[1757342335453,4.22982572,215.22,215.21,37.36]
[1757342335794,0.76,215.22,215.21,37.36]
[1757342336978,0.76,215.22,215.19,26.0]
[1757342337178,0.7,215.21,215.2,37.36]
[1757342338967,5.34662422,215.21,215.2,37.36]
[1757342339290,0.7,215.21,215.2,37.36]
[1757342340854,0.7,215.21,215.19,26.0]
[1757342341076,7.51750788,215.21,215.2,37.36]
[1757342341568,8.21750788,215.21,215.2,37.36]
[1757342341771,5.34662422,215.21,215.2,37.36]
[1757342342356,0.7,215.21,215.2,37.36]
[1757342342753,5.34662422,215.21,215.2,37.36]
[1757342342951,8.21750788,215.21,215.2,37.36]
[1757342343151,21.81310189,215.21,215.2,37.36]
[1757342343360,33.42966245,215.21,215.2,37.36]
[1757342343556,21.81310189,215.21,215.2,37.36]
[1757342344283,18.94221823,215.21,215.2,37.36]
[1757342344458,0.7,215.21,215.2,37.36]
[1757342344877,5.34662422,215.21,215.2,37.36]
[1757342345081,0.06,215.22,215.2,42.0068095]
[1757342345385,0.06,215.22,215.2,68.7068095]
[1757342346066,0.06,215.22,215.21,0.67]
[1757342346259,0.06,215.22,215.2,68.0068095]
[1757342346458,0.06,215.22,215.2,68.6768095]
[1757342346751,0.06,215.22,215.21,0.67]
[1757342346955,0.06,215.22,215.21,4.64662422]
[1757342349097,0.06,215.22,215.21,5.31662422]
[1757342349592,1e-08,215.22,215.21,5.31662422]
[1757342349796,0.06,215.24,215.23,26.0]
[1757342349966,0.06,215.24,215.23,63.36]
[1757342350162,0.06,215.24,215.23,64.03]
[1757342350872,0.06,215.24,215.23,68.67619244]
[1757342351381,0.06,215.24,215.23,82.27178645]
[1757342351382,1e-08,215.24,215.23,82.27178645]
[1757342352282,1e-08,215.25,215.23,82.77178645]
[1757342352579,1e-08,215.25,215.24,0.67]
[1757342352792,1e-08,215.25,215.24,38.03]
[1757342353094,1e-08,215.25,215.24,42.67597658]
[1757342353858,1e-08,215.25,215.24,42.00597658]
[1757342354061,1e-08,215.25,215.24,42.67597658]
[1757342354284,1e-08,215.25,215.24,38.03]
[1757342354583,1e-08,215.25,215.24,68.00597658]
[1757342354780,1e-08,215.25,215.24,30.64597658]
[1757342354969,1e-08,215.25,215.24,68.00597658]
[1757342355578,1e-08,215.25,215.24,68.67597658]
[1757342359168,1e-08,215.25,215.24,68.00597658]
[1757342359869,0.70000001,215.25,215.24,63.34]
[1757342360181,0.70000001,215.25,215.24,37.34]
[1757342360363,1e-08,215.25,215.24,37.34]
[1757342360567,1e-08,215.25,215.24,42.65597658]
[1757342361863,1e-08,215.25,215.24,4.64597658]
[1757342362069,1e-08,215.25,215.24,63.34]
[1757342362669,1e-08,215.25,215.24,67.98597658]
[1757342363085,1e-08,215.25,215.24,37.34]
[1757342363400,0.70000001,215.25,215.24,37.34]
[1757342364183,1e-08,215.25,215.24,41.98597658]
[1757342367394,1e-08,215.25,215.24,43.84371989]
[1757342370803,1e-08,215.25,215.24,44.51371989]
[1757342371996,1e-08,215.25,215.24,43.84371989]
[1757342373775,1e-08,215.25,215.24,6.50371989]
[1757342373979,1e-08,215.25,215.24,43.82371989]
[1757342376083,0.70000001,215.25,215.24,65.17774331]
[1757342376507,1e-08,215.25,215.24,69.82371989]
[1757342377301,1e-08,215.25,215.24,69.85371989]
[1757342377685,1e-08,215.25,215.24,1.88774331]
[1757342377883,0.70000001,215.25,215.24,27.88774331]
[1757342378092,0.70000001,215.25,215.24,26.03]
[1757342378386,0.70000001,215.25,215.24,63.35]
[1757342378700,0.70000001,215.25,215.24,0.03]
[1757342378879,0.70000001,215.25,215.24,37.35]
[1757342379377,0.70000001,215.25,215.24,63.35]
[1757342383897,0.70000001,215.25,215.24,26.03]
[1757342384093,5.34576075,215.25,215.24,63.35]
[1757342385320,0.70000001,215.25,215.24,63.35]
[1757342385501,5.34576075,215.25,215.24,26.03]
[1757342385910,5.34576075,215.25,215.24,63.35]
[1757342386112,5.34576075,215.25,215.24,26.03]
[1757342386293,5.34576075,215.25,215.24,63.35]
[1757342386493,5.34576075,215.25,215.24,26.03]
[1757342386731,9.83095551,215.25,215.24,26.03]
[1757342387012,9.83095551,215.25,215.24,37.35]
[1757342387993,9.83095551,215.25,215.24,0.03]